bitfinex/quotes_ETHUSD_20250616
["timestamp","ask_amount","ask_price","bid_price","bid_amount"]
[1750117063859,0.55,2573.8,2573.6,3.88553502]
[1750117064211,6.91932392,2574.0,2573.7,3.88545673]
[1750117064410,10.55,2573.9,2573.7,3.88545269]
[1750117064660,10.55,2573.9,2573.8,3.88530577]
[1750117064957,10.55,2573.9,2573.7,3.88540101]
[1750117065117,10.55,2573.9,2573.6,3.88548191]
[1750117065614,10.0,2573.9,2572.9,0.7951]
[1750117065849,6.91932392,2574.2,2574.0,3.88492251]
[1750117065850,0.92315589,2574.1,2574.0,3.88492251]
[1750117066153,0.92315589,2574.2,2574.1,3.88484449]
[1750117066453,0.7643,2574.3,2574.2,3.88470204]
[1750117066624,0.7643,2574.3,2573.8,2.162]
[1750117066827,1.68715589,2574.7,2574.5,3.8841176]
[1750117067025,0.92315589,2574.8,2574.6,3.8840985]
[1750117067356,0.04,2574.9,2574.8,3.88379679]
[1750117068562,0.04,2574.9,2574.8,6.04579679]
[1750117068856,0.04,2574.9,2574.7,3.88394738]
[1750117068857,10.04,2574.9,2574.7,3.8838248]
[1750117069089,10.96315589,2574.9,2574.7,3.8838248]
[1750117069228,10.96315589,2574.9,2574.5,2.162]
[1750117069431,12.86538037,2574.9,2574.6,3.88409286]
[1750117069658,12.86538037,2574.9,2574.5,2.162]
[1750117069659,0.92315589,2574.8,2574.5,6.04622542]
[1750117069822,12.86538037,2574.9,2574.7,3.88384234]
[1750117070218,2.30385589,2574.8,2574.3,3.88448409]
[1750117070437,2.30385589,2574.8,2574.0,3.88495126]
[1750117070438,0.55,2574.4,2574.0,3.88495126]
[1750117070673,11.47315589,2574.4,2573.9,3.88514228]
[1750117070875,0.92449439,2574.3,2573.8,2.20084807]
[1750117071075,0.92449439,2574.5,2574.4,3.88440024]
[1750117071370,0.04,2574.9,2574.5,3.88415788]
[1750117071670,0.04,2574.9,2574.1,0.8037]
[1750117071671,0.96449439,2574.9,2574.1,0.8037]
[1750117071873,0.96449439,2574.9,2573.4,3.88580575]
[1750117071874,0.55,2574.7,2574.2,2.162]
[1750117072176,10.92449439,2574.6,2573.7,9.0312]
[1750117072336,10.92449439,2574.8,2574.0,7.133]
[1750117072673,0.92443737,2574.8,2574.1,0.21633199]
[1750117072967,0.92443737,2574.8,2574.2,0.25515432]
[1750117073175,0.92443737,2574.8,2574.6,3.88409075]
[1750117073350,0.92443737,2574.8,2574.7,2.162]
[1750117074100,0.92443737,2574.8,2574.7,2.116]
[1750117074241,0.59,2574.9,2574.8,3.88379679]
[1750117074650,0.96443737,2574.9,2573.9,3.88515482]
[1750117074854,0.96443737,2574.9,2573.7,12.91662669]
[1750117074855,0.04,2574.9,2574.8,3.88379679]
[1750117075063,0.04,2574.9,2574.8,6.21615984]
[1750117075673,0.04,2574.9,2574.8,6.25499415]
[1750117075977,0.04,2574.9,2574.8,6.21615984]
[1750117076535,0.04,2574.9,2574.8,6.25499125]
[1750117076740,0.04,2574.9,2574.8,7.0447087]
[1750117077373,0.04,2574.9,2574.8,4.96753685]
[1750117077576,0.04,2574.9,2574.8,14.1617087]
[1750117078083,0.04,2574.9,2574.8,14.4859213]
[1750117079158,0.04,2574.9,2574.8,14.4857317]
[1750117079462,0.04,2574.9,2574.8,14.48047318]
[1750117080184,0.04,2574.9,2574.8,14.48147318]
[1750117080388,0.04,2574.9,2574.8,14.48153783]
[1750117080890,0.04,2574.9,2574.8,15.03153783]
[1750117081188,0.04,2574.9,2574.8,25.03153783]
[1750117081375,0.2146381,2575.6,2575.5,3.88274121]
[1750117081575,0.2146381,2575.6,2575.5,22.95047877]
[1750117081789,0.04,2575.9,2575.8,3.88228899]
[1750117081990,0.04,2575.9,2575.8,12.0409391]
[1750117082146,0.04,2575.9,2575.8,22.37518899]
[1750117082348,0.04,2576.9,2576.8,3.88078236]
[1750117082607,0.04,2576.9,2576.8,13.10678236]
[1750117083112,0.04,2576.9,2576.8,13.32180219]
[1750117083250,0.04,2576.9,2576.8,13.32871477]
[1750117083712,0.04,2576.9,2576.8,13.32771477]
[1750117083914,0.04,2576.9,2576.8,4.09571477]
[1750117084211,0.04,2576.9,2576.8,13.10778236]
[1750117084408,0.04,2576.9,2576.8,13.11078236]
[1750117086567,0.04,2576.9,2576.8,3.88078236]
[1750117086767,0.04,2576.9,2576.8,13.10578236]
[1750117087074,0.04,2576.9,2576.8,13.42974332]
[1750117087668,0.04,2576.9,2576.8,14.41510651]
[1750117089072,0.04,2576.9,2576.8,14.09114555]
[1750117089299,0.04,2576.9,2576.8,14.64114555]
[1750117089483,0.04,2576.9,2576.8,6.98114555]
[1750117089683,0.04,2576.9,2576.8,14.07914555]
[1750117089888,0.04,2576.9,2576.8,13.86448236]
[1750117090310,0.04,2576.9,2576.8,4.65148236]
[1750117090477,0.04,2576.9,2576.8,13.85548236]
[1750117091015,0.04,2576.9,2576.8,13.85348236]
[1750117091313,0.04,2576.9,2576.8,13.08278236]
[1750117091824,0.04,2576.9,2576.8,13.08078236]
[1750117095421,0.04,2576.9,2576.8,13.88998236]
[1750117096224,0.04,2576.9,2576.8,7.12794332]
[1750117096429,0.04,2576.9,2576.8,13.38174332]
[1750117098893,0.04,2576.9,2576.8,14.69344332]
[1750117099091,0.04,2576.9,2576.8,14.14344332]
[1750117099810,0.04,2576.9,2576.8,14.35715469]
[1750117100684,0.04,2576.9,2576.8,14.14344332]
[1750117100892,0.04,2576.9,2576.8,14.35712021]
[1750117101100,0.04,2576.9,2576.8,14.14344332]
[1750117101299,0.04,2576.9,2576.8,14.35735364]
[1750117101779,0.04,2576.9,2576.8,14.14344332]
[1750117102117,0.04,2576.9,2576.8,14.35742888]
[1750117102626,0.04,2576.9,2576.8,14.35542888]
[1750117102922,0.04,2576.9,2576.8,6.53172888]
[1750117103141,0.04,2576.9,2576.8,13.37974332]
[1750117103285,0.04,2576.9,2576.8,0.32396096]
[1750117103480,13.1624,2576.9,2576.8,0.32396096]
[1750117104207,10.8254,2576.9,2576.8,11.26674332]
[1750117104594,10.8254,2576.9,2576.8,4.20474332]
[1750117104800,10.04,2576.9,2576.8,13.34574332]
[1750117105216,10.04,2576.9,2576.8,13.02178236]
[1750117106697,10.04,2576.9,2576.8,13.23758097]
[1750117107023,0.04,2576.9,2576.8,13.23758097]
[1750117108599,0.04,2576.9,2576.8,6.17558097]
[1750117108804,3.1297,2576.9,2576.8,0.21579861]
[1750117109002,3.1297,2576.9,2576.7,10.286]
[1750117109003,14.05628071,2576.9,2576.7,10.286]
[1750117109315,17.06664927,2576.8,2576.7,10.286]
[1750117109502,16.22034437,2576.8,2576.7,10.286]
[1750117109699,15.91114117,2576.8,2576.7,10.60997353]
[1750117109937,17.76195996,2576.8,2576.7,10.60997353]
[1750117110238,17.76195108,2576.8,2576.7,10.60997353]
[1750117110437,15.66439062,2576.8,2576.7,10.60997353]
[1750117110813,15.66439062,2576.8,2576.7,8.53097353]
[1750117111019,14.12252043,2576.8,2576.7,0.32397353]
[1750117111219,15.66809868,2576.8,2576.7,0.32397353]
[1750117112021,19.54888104,2576.8,2576.7,0.32397353]
[1750117112220,19.54888104,2576.8,2576.4,2.079]
[1750117112221,2.337,2576.6,2576.4,2.079]
[1750117112533,13.26358071,2576.5,2576.4,5.96038487]
[1750117113827,10.92658071,2576.5,2576.4,5.96038487]
[1750117114033,10.0,2576.5,2576.4,5.96038487]
[1750117114234,10.0,2576.5,2576.4,13.02138487]
[1750117114947,10.0,2576.5,2576.4,9.14]
[1750117115107,10.92679494,2576.5,2576.4,13.02138487]
[1750117115309,10.0,2576.5,2576.4,2.079]
[1750117115508,10.92662209,2576.5,2576.4,5.96038487]
[1750117116250,10.0,2576.5,2576.4,5.96038487]
[1750117116458,2.337,2576.3,2575.8,3.88228899]
[1750117116655,2.337,2576.3,2576.2,3.8816862]
[1750117116959,2.337,2576.3,2576.2,10.9426862]
[1750117117258,13.1257,2576.3,2576.2,10.9426862]
[1750117117724,13.1257,2576.3,2576.2,3.8816862]
[1750117117928,12.337,2576.2,2576.1,3.88183688]
[1750117118152,2.337,2576.2,2576.1,3.88183688]
[1750117118467,2.337,2576.2,2575.9,5.96213539]
[1750117118609,6.76898757,2576.0,2575.4,3.88281519]
[1750117118814,2.337,2575.6,2575.5,4.20686569]
[1750117119124,12.337,2575.8,2575.6,3.88259046]
[1750117119326,12.337,2575.8,2575.7,3.88243972]
[1750117119716,12.337,2575.8,2575.6,3.88251891]
[1750117119911,12.337,2575.8,2575.7,3.88243972]
[1750117120117,12.337,2575.8,2575.5,6.28681577]
[1750117120118,2.887,2575.7,2575.5,0.32412448]
[1750117120453,2.887,2575.7,2575.5,2.40412448]
[1750117120811,14.64419046,2575.6,2575.5,0.32412448]
[1750117121012,25.57004743,2575.6,2575.5,0.32412448]
[1750117121242,15.02210643,2575.6,2575.5,0.32412448]
[1750117121557,13.1516,2575.6,2575.5,0.32412448]
[1750117121853,13.1516,2575.6,2575.4,3.88289197]
[1750117122057,10.0,2575.5,2575.3,3.88299545]
[1750117122218,10.0,2575.5,2575.2,3.88312959]
[1750117122416,2.337,2575.4,2575.2,3.88312959]
[1750117123168,2.337,2575.4,2575.2,3.88313306]
[1750117123659,2.337,2575.4,2575.3,3.88304275]
[1750117123969,2.337,2575.4,2574.8,9.141]
[1750117124181,11.20817626,2575.6,2574.8,9.141]
[1750117124348,11.20817626,2575.6,2574.8,13.02476806]
[1750117124668,11.20817626,2575.6,2575.3,3.88292128]
[1750117125042,2.337,2575.5,2575.3,3.88292128]
[1750117125366,11.20817626,2575.6,2574.8,13.02476806]
[1750117125367,0.8146,2575.6,2575.5,3.88274121]
[1750117126771,0.8146,2575.6,2575.4,5.96289089]
[1750117126980,0.8146,2575.6,2575.5,3.88274121]
[1750117127329,0.8146,2575.6,2575.4,5.96285059]
[1750117127870,0.8146,2575.6,2574.1,0.8678]
[1750117127871,0.55,2575.2,2574.1,0.8678]
[1750117128074,10.0,2575.2,2575.1,3.88334433]
[1750117128274,2.337,2575.4,2575.3,3.88304275]
[1750117128587,0.8146,2575.6,2575.5,3.88274121]
[1750117128735,10.8146,2575.6,2575.5,3.88274121]
[1750117128935,0.8146,2575.6,2575.5,3.88274121]
[1750117129237,3.1516,2575.6,2575.5,3.88274121]
[1750117129654,3.1516,2575.6,2575.4,3.88288956]
[1750117130444,3.1516,2575.6,2575.1,9.141]
[1750117130899,3.1516,2575.6,2575.5,3.88274121]
[1750117131104,9.397,2575.8,2575.6,3.88249597]
[1750117131397,9.397,2575.8,2575.7,3.88243972]
[1750117131598,9.397,2575.8,2575.5,3.88264331]
[1750117131902,9.397,2575.8,2575.2,3.88311035]
[1750117131903,9.25632392,2575.6,2575.2,3.88311035]
[1750117132202,0.55,2575.3,2575.1,2.081]
[1750117132493,12.337,2575.2,2575.1,2.081]
[1750117132801,2.337,2575.2,2575.1,2.081]
[1750117133242,0.771,2575.3,2574.5,11.70163823]
[1750117133243,12.337,2575.0,2574.9,2.081]
[1750117133448,2.337,2575.0,2574.9,5.96464596]
[1750117134250,2.337,2575.1,2574.9,2.081]
[1750117134451,2.337,2575.1,2575.0,2.076]
[1750117134678,2.337,2575.1,2575.0,5.95949514]
[1750117135370,2.337,2575.1,2575.0,2.076]
[1750117135570,2.337,2575.1,2575.0,5.95949514]
[1750117136191,2.337,2575.1,2575.0,2.076]
[1750117136563,12.887,2575.1,2575.0,2.076]
[1750117136892,2.887,2574.8,2574.7,8.2]
[1750117137193,12.337,2574.8,2574.7,12.08394764]
[1750117137391,12.887,2574.8,2574.7,8.2]
[1750117137598,13.6625,2574.6,2574.5,2.076]
[1750117140004,13.6625,2574.6,2574.1,3.92479612]
[1750117140005,2.337,2574.2,2574.1,2.116]
[1750117140209,12.887,2574.2,2574.1,2.116]
[1750117140408,19.944,2574.2,2574.1,2.116]
[1750117140575,23.42993239,2574.2,2574.1,2.116]
[1750117140774,13.52593541,2574.2,2574.1,6.00085295]
[1750117140953,10.0,2574.2,2574.1,6.00085295]
[1750117141723,0.7996,2574.8,2574.6,3.8840985]
[1750117141872,0.7996,2575.1,2574.9,3.88356926]
[1750117142065,12.337,2575.0,2574.8,3.88374808]
[1750117142454,0.7996,2575.1,2574.8,3.88374808]
[1750117142455,19.394,2574.9,2574.8,3.88374808]
[1750117142656,2.337,2574.8,2574.7,3.88390042]
[1750117142899,0.3860354,2575.0,2574.9,3.88364596]
[1750117143058,2.7230354,2575.0,2574.7,3.88394199]
[1750117143259,2.337,2574.8,2574.3,4.67]
[1750117143459,2.337,2574.8,2574.7,3.88394764]
[1750117143855,0.7996,2575.4,2575.1,3.88334433]
[1750117144080,2.337,2575.3,2575.2,3.88319353]
[1750117144289,2.337,2575.3,2575.0,3.88349467]
[1750117144491,12.337,2575.3,2575.0,3.88349467]
[1750117144671,12.337,2575.3,2574.7,2.076]
[1750117144868,12.887,2575.3,2575.2,3.88319353]
[1750117145080,12.337,2575.3,2574.7,2.076]
[1750117145266,0.55,2575.2,2574.4,4.67]
[1750117145485,0.55,2575.2,2573.3,10.38308087]
[1750117145486,9.943,2575.2,2575.1,3.88334433]
[1750117145888,9.943,2575.2,2575.0,3.88343835]
[1750117146105,10.0,2574.9,2574.8,3.88378496]
[1750117146304,12.337,2574.9,2574.8,3.88378496]
[1750117147671,12.337,2574.9,2574.5,2.076]
[1750117147872,12.337,2574.9,2574.8,3.88379679]
[1750117148274,2.337,2575.2,2575.1,3.88334433]
[1750117148584,3.1366,2575.4,2575.3,3.88304275]
[1750117148789,2.337,2575.4,2575.3,3.88304275]
[1750117149433,1.71584828,2575.7,2575.5,3.88274121]
[1750117149569,3.26504828,2575.8,2575.7,3.88243972]
[1750117149777,2.337,2575.8,2575.7,5.95843972]
[1750117149978,2.337,2575.8,2575.7,2.076]
[1750117150504,16.22939004,2575.8,2575.7,2.076]
[1750117150699,23.28239004,2575.8,2575.7,2.076]
[1750117151189,2.887,2575.6,2575.2,3.88310172]
[1750117151390,2.887,2575.6,2574.1,3.92475692]
[1750117151391,12.337,2575.3,2575.1,2.076]
[1750117151587,12.337,2575.3,2574.5,11.723]
[1750117151588,2.337,2574.9,2574.6,2.076]
[1750117151807,2.337,2574.7,2574.6,5.96001642]
[1750117152804,2.887,2574.8,2574.7,3.88394764]
[1750117154071,12.887,2574.8,2574.7,3.88394764]
[1750117155204,1.3354,2574.7,2574.1,4.71]
[1750117155399,2.337,2574.6,2574.3,3.88455114]
[1750117155633,1.9938,2574.8,2574.6,3.8840985]
[1750117155842,7.05,2574.7,2574.6,3.8840985]
[1750117156052,10.0,2574.8,2574.7,3.88394764]
[1750117156348,10.92833404,2575.3,2575.1,3.88334433]
[1750117156637,1.17904755,2575.8,2575.5,3.88272063]
[1750117156840,2.337,2575.7,2575.6,3.88259046]
[1750117157345,2.337,2575.7,2575.5,3.88271049]
[1750117157548,2.337,2575.7,2575.6,3.88259046]
[1750117158045,2.337,2575.7,2575.5,3.88273293]
[1750117158228,5.17807398,2575.7,2575.5,3.88273293]
[1750117158400,6.10627265,2575.7,2575.5,3.88273293]
[1750117158608,2.887,2575.3,2575.2,2.076]
[1750117158926,12.887,2575.3,2575.2,2.076]
[1750117159125,17.78245074,2575.3,2575.2,2.076]
[1750117159747,17.78245074,2575.3,2574.5,5.96016849]
[1750117159748,2.337,2574.9,2574.5,5.96016849]
[1750117159937,12.337,2574.7,2574.5,2.076]
[1750117160163,13.154,2574.7,2574.5,2.076]
[1750117160729,9.384,2574.6,2574.5,2.076]
[1750117161541,9.384,2574.6,2574.5,5.96024936]
[1750117161743,2.337,2574.4,2574.1,0.04]
[1750117161948,12.887,2574.2,2574.1,0.04]
[1750117162142,26.85049357,2574.2,2574.1,0.04]
[1750117162679,27.77915478,2574.2,2574.1,0.04]
[1750117163044,27.77915478,2574.2,2574.1,0.36430076]
[1750117163244,30.55707026,2574.2,2574.1,0.36430076]
[1750117163450,31.37407026,2574.2,2574.1,0.36430076]
[1750117163661,35.2587723,2574.2,2574.1,0.36430076]
[1750117164272,24.32707026,2574.2,2574.1,0.36430076]
[1750117164429,31.37307026,2574.2,2574.1,0.36430076]
[1750117164634,35.2577723,2574.2,2574.1,0.36430076]
[1750117164834,24.32707026,2574.2,2574.1,0.04]
[1750117165030,21.67866121,2574.2,2574.1,0.04]
[1750117165272,20.75,2574.2,2574.1,0.04]
[1750117165479,10.0,2574.2,2574.1,0.04]
[1750117165638,3.88370098,2574.9,2574.1,0.04]
[1750117165639,1.97726663,2574.9,2574.6,3.88407968]
[1750117165838,0.817,2574.9,2574.6,3.88407968]
[1750117166063,3.10748608,2575.2,2574.4,2.067]
[1750117166270,0.817,2575.2,2574.9,3.88352237]
[1750117166450,0.817,2575.2,2575.0,3.88347204]
[1750117166749,6.91649357,2575.4,2575.1,3.88334433]
[1750117167053,7.045,2575.3,2575.1,3.88334433]
[1750117167457,10.0,2575.3,2575.1,3.88334433]
[1750117167772,2.337,2575.5,2575.3,3.88294626]
[1750117167952,2.337,2575.5,2575.4,3.88289197]
[1750117168139,2.337,2575.5,2575.3,3.88298551]
[1750117168338,2.337,2575.5,2575.2,3.88313467]
[1750117168673,12.337,2575.5,2575.3,3.88303584]
[1750117169178,12.337,2575.5,2575.1,3.88328781]
[1750117169362,12.337,2575.5,2575.2,3.88317206]
[1750117169561,0.55,2575.4,2575.1,3.88330017]
[1750117169763,12.887,2575.4,2575.1,3.88330017]
[1750117169973,19.93,2575.4,2575.0,2.067]
[1750117170274,19.93,2575.4,2575.0,5.95048588]
[1750117170452,19.93,2575.4,2575.1,3.88320453]
[1750117170875,19.93,2575.4,2575.2,3.88318893]
[1750117171380,19.93,2575.4,2575.1,3.8832786]
[1750117172376,19.93,2575.4,2575.1,3.88333496]
[1750117172577,19.93,2575.4,2575.2,3.88318159]
[1750117172751,0.3901889,2575.6,2575.2,3.88318159]
[1750117172752,2.337,2575.6,2575.2,3.88318159]
[1750117173088,10.0,2575.5,2575.1,3.88330203]
[1750117173442,10.0,2575.5,2575.2,3.88304983]
[1750117173780,10.0,2575.5,2575.3,3.88300236]
[1750117174079,10.0,2575.5,2575.4,3.88289197]
[1750117174281,12.337,2575.5,2575.3,3.88297851]
[1750117175494,0.55,2575.4,2575.0,2.067]
[1750117175697,2.887,2575.1,2575.0,2.067]
[1750117175994,12.887,2575.1,2575.0,2.067]
[1750117176359,10.0,2575.1,2575.0,5.95049514]
[1750117176965,10.0,2575.1,2575.0,10.62049514]
[1750117177983,10.0,2575.1,2575.0,6.74389514]
[1750117178774,10.0,2575.1,2575.0,5.95049514]
[1750117179171,16.22059855,2575.0,2574.5,4.67]
[1750117179401,9.31990552,2574.7,2574.6,3.8840985]
[1750117179598,12.337,2574.9,2574.7,3.88394764]
[1750117179818,12.337,2574.9,2574.8,3.88379679]
[1750117180013,12.337,2575.0,2574.5,4.67]
[1750117180198,14.3293,2575.0,2574.6,3.88400735]
[1750117180594,21.3653,2575.0,2574.7,3.88393914]
[1750117180914,21.3653,2575.0,2574.5,8.55421437]
[1750117180915,21.3653,2575.0,2574.6,3.88404435]
[1750117182117,21.3653,2575.0,2574.8,3.88365747]
[1750117182314,21.3653,2575.0,2574.7,3.88387974]
[1750117182908,21.3653,2575.0,2574.4,8.55435362]
[1750117183119,2.337,2574.7,2574.4,4.67]
[1750117183317,9.372,2574.7,2574.5,3.88415112]
[1750117183526,2.337,2574.8,2574.7,3.88391882]
[1750117183825,2.337,2574.6,2574.4,4.67]
[1750117183982,2.337,2574.6,2574.4,8.5543775]
[1750117184182,2.337,2574.6,2574.4,4.67]
[1750117185017,10.0,2574.7,2574.4,4.67]
[1750117185018,2.337,2574.5,2574.4,4.67]
[1750117185194,2.337,2574.5,2574.4,3.88440024]
[1750117185925,2.337,2574.6,2574.2,14.15963112]
[1750117186129,2.337,2574.4,2574.3,3.88455114]
[1750117186822,2.337,2574.4,2574.1,0.04]
[1750117187024,16.77170204,2574.2,2574.1,0.04]
[1750117187391,17.69764798,2574.2,2574.1,0.04]
[1750117187617,21.73104411,2574.2,2574.1,0.04]
[1750117187922,2.337,2573.5,2573.4,2.067]
[1750117188121,19.368,2573.5,2573.4,2.067]
[1750117188488,12.337,2573.3,2573.1,0.04]
[1750117188994,12.887,2573.2,2573.1,0.04]
[1750117189187,15.24846383,2573.2,2573.1,0.04]
[1750117189917,19.13467555,2573.2,2573.1,0.04]
[1750117190220,15.24846383,2573.2,2573.1,0.04]
[1750117191545,17.03,2573.5,2573.2,3.88607838]
[1750117191699,7.03,2573.6,2573.5,3.88575869]
[1750117192343,10.0,2573.6,2573.2,0.7509]
[1750117192543,10.0,2573.6,2573.3,3.88596089]
[1750117193040,7.03,2573.5,2573.3,3.88596089]
[1750117193403,10.0,2573.4,2573.3,3.88596089]
[1750117194150,10.0,2573.4,2573.1,2.108]
[1750117194366,10.0,2573.4,2573.2,3.88619611]
[1750117194526,10.0,2573.4,2573.3,3.8860607]
[1750117194705,10.0,2573.4,2573.1,2.108]
[1750117194706,2.337,2573.6,2573.5,3.88573953]
[1750117194911,2.337,2574.0,2573.9,3.88515482]
[1750117195136,0.39756919,2574.2,2573.9,3.88510182]
[1750117195345,7.83,2574.3,2574.0,3.88500388]
[1750117195558,7.83,2574.3,2574.1,3.88485295]
[1750117195559,1.97342801,2574.3,2574.1,3.88485295]
[1750117195843,7.028,2574.2,2574.0,3.88496718]
[1750117196052,9.365,2574.2,2573.8,5.9412483]
[1750117196209,2.887,2574.1,2573.8,5.9412483]
[1750117196409,9.365,2574.0,2573.8,2.056]
[1750117196611,10.0,2573.9,2573.8,2.056]
[1750117196808,12.3799856,2573.9,2573.8,2.056]
[1750117197245,15.2669856,2573.9,2573.8,2.056]
[1750117198201,12.3799856,2573.9,2573.8,2.824]
[1750117198330,0.7575,2575.1,2573.8,9.852]
[1750117198512,7.027,2575.0,2574.5,3.88417222]
[1750117198712,7.027,2575.0,2573.8,13.73719697]
[1750117198713,10.0,2574.9,2573.8,13.73719697]
[1750117199014,0.55,2574.6,2574.2,3.88462349]
[1750117199229,2.337,2574.4,2574.2,2.056]
[1750117199438,2.337,2574.4,2574.2,5.94068389]
[1750117200150,2.887,2574.3,2574.2,2.056]
[1750117200543,12.887,2574.3,2574.2,2.056]
[1750117200745,2.337,2574.1,2573.7,3.88530851]
[1750117200931,12.337,2573.9,2573.8,3.88530577]
[1750117201551,12.337,2573.9,2573.7,3.88541452]
[1750117201921,12.337,2573.9,2573.7,5.94141452]
[1750117202118,2.887,2573.8,2573.7,2.056]
[1750117202832,2.887,2573.6,2573.2,2.056]
[1750117203036,12.887,2573.3,2573.2,2.056]
[1750117203235,19.91,2573.3,2573.2,2.056]
[1750117203664,22.6683,2573.3,2573.2,2.056]
[1750117204037,23.0527031,2573.3,2573.2,2.056]
[1750117208273,12.887,2573.2,2573.1,0.04]
[1750117208976,22.22570483,2573.2,2573.1,0.04]
[1750117210641,22.22570483,2573.2,2573.1,0.064]
[1750117210861,25.8534381,2573.2,2573.1,0.064]
[1750117211478,29.73964982,2573.2,2573.1,0.064]
[1750117211625,30.66655279,2573.2,2573.1,0.064]
[1750117212628,17.44163624,2573.2,2573.1,0.064]
[1750117212824,29.24370483,2573.2,2573.1,0.064]
[1750117213032,2.337,2572.6,2572.2,12.88]
[1750117213252,22.22570483,2572.3,2572.2,8.21]
[1750117213448,12.337,2572.2,2572.1,2.096]
[1750117213648,12.887,2572.2,2572.1,2.096]
[1750117213855,15.81137048,2572.2,2572.1,2.096]
[1750117216687,15.26137048,2572.2,2572.1,5.98387372]
[1750117217015,2.337,2572.8,2572.7,3.88696699]
[1750117217285,2.337,2572.8,2572.7,5.94296699]
[1750117217839,7.016,2573.2,2573.0,3.88650656]
[1750117217840,2.337,2573.1,2573.0,3.88650656]
[1750117218081,13.40340271,2573.1,2572.9,3.88660675]
[1750117218381,13.40340271,2573.1,2573.0,3.88651379]
[1750117218678,12.337,2573.1,2573.0,3.88651379]
[1750117218884,2.337,2573.1,2573.0,3.88651379]
[1750117219469,9.351,2573.2,2573.0,3.88651379]
[1750117219786,2.887,2572.9,2572.6,4.67]
[1750117220082,2.887,2572.9,2572.5,2.056]
[1750117220083,12.887,2572.6,2572.5,2.056]
[1750117220445,14.96966485,2572.6,2572.5,2.056]
[1750117221310,1.15557086,2573.1,2572.6,0.7693]
[1750117221463,1.15557086,2573.7,2572.7,2.056]
[1750117221659,6.92555452,2573.5,2572.7,2.056]
[1750117221901,10.0,2573.2,2572.8,3.88670859]
[1750117222078,0.55,2573.1,2572.8,3.88670859]
[1750117222278,12.337,2573.0,2572.7,2.056]
[1750117222602,12.337,2572.8,2572.6,0.7693]
[1750117222789,2.337,2572.8,2572.6,5.94309918]
[1750117222978,2.337,2572.8,2572.6,2.056]
[1750117223300,2.337,2572.8,2572.2,11.71425943]
[1750117223301,2.337,2572.6,2572.2,4.70217169]
[1750117223600,2.337,2572.6,2572.2,2.056]
[1750117223785,10.0,2572.5,2572.2,5.94369327]
[1750117223976,10.0,2572.5,2572.3,3.88757143]
[1750117223977,2.337,2572.4,2572.3,3.88757143]
[1750117225501,2.337,2572.7,2572.6,3.88711809]
[1750117225679,2.337,2572.7,2572.3,3.88749947]
[1750117225876,1.15828175,2573.6,2573.1,3.88636275]
[1750117226088,0.34762429,2573.6,2573.5,3.88575869]
[1750117226396,2.08472854,2574.4,2573.9,3.88510423]
[1750117226596,10.0,2574.3,2573.5,6.713]
[1750117226765,2.337,2574.2,2573.7,3.88534827]
[1750117226966,2.337,2574.0,2573.7,3.88534827]
[1750117227218,2.337,2573.8,2573.5,4.67]
[1750117227583,2.337,2573.8,2573.5,10.598658]
[1750117227966,2.887,2573.6,2573.5,6.713]
[1750117228168,12.887,2573.6,2573.5,6.713]
[1750117229429,12.337,2573.6,2573.5,11.38665869]
[1750117230803,12.337,2573.6,2573.5,6.713]
[1750117231002,13.5707,2573.6,2573.5,6.713]
[1750117231203,12.337,2573.6,2573.5,6.713]
[1750117231527,12.337,2573.6,2573.5,10.59875869]
[1750117231696,12.337,2573.6,2573.5,6.713]
[1750117233523,12.337,2573.6,2573.5,4.67]
[1750117233902,12.887,2573.6,2573.5,4.67]
[1750117234097,14.1757,2573.6,2573.5,4.67]
[1750117235523,2.337,2573.1,2572.9,2.042]
[1750117235899,2.337,2573.1,2572.0,3.88795393]
[1750117235900,12.337,2573.1,2572.7,4.67]
[1750117236099,2.337,2573.1,2573.0,3.88651379]
[1750117236500,2.337,2573.1,2572.9,3.8865999]
[1750117236697,2.887,2572.8,2572.4,12.884]
[1750117236896,19.81255452,2572.6,2572.5,0.32450247]
[1750117237121,26.81455452,2572.6,2572.5,0.32450247]
[1750117237486,30.70167261,2572.6,2572.5,0.32450247]
[1750117238190,31.62937342,2572.6,2572.5,0.32450247]
[1750117238397,35.21929965,2572.6,2572.5,0.32450247]
[1750117239124,35.99909965,2572.6,2572.5,0.32450247]
[1750117239323,35.99909965,2572.6,2572.1,0.04]
[1750117239324,2.887,2572.2,2572.1,0.04]
[1750117239490,12.887,2572.2,2572.1,0.04]
[1750117240134,10.0,2572.2,2572.1,3.92787372]
[1750117240302,7.7977,2573.1,2572.6,3.88705474]
[1750117240509,10.0,2573.0,2572.6,3.88705474]
[1750117240829,6.92555452,2573.3,2572.7,3.88685844]
[1750117241026,2.337,2573.2,2572.8,3.88681592]
[1750117241234,13.92555452,2573.3,2572.9,8.5565798]
[1750117241399,15.78646406,2573.3,2572.9,4.67]
[1750117241727,1.86090954,2573.3,2573.2,3.88621172]
[1750117241889,7.0,2573.5,2573.1,3.88635484]
[1750117242088,23.22263118,2573.6,2573.0,3.88646642]
[1750117242333,12.337,2573.3,2572.9,5.4718]
[1750117242530,2.337,2573.3,2572.9,5.4718]
[1750117242845,10.92688163,2573.5,2572.9,5.4718]
[1750117243012,17.92581506,2573.7,2573.0,4.67]
[1750117243367,2.337,2573.6,2573.2,3.88612558]